bitfinex/quotes_ETHUSD_20250630
["timestamp","ask_amount","ask_price","bid_price","bid_amount"]
[1751296030254,0.02319364,2443.6,2443.4,14.09253285]
[1751296030483,2.04680636,2443.6,2443.5,26.29572383]
[1751296030759,2.04680636,2443.6,2443.5,26.21655779]
[1751296030760,9.28580636,2443.6,2443.5,26.21655779]
[1751296030926,9.28580636,2443.6,2443.5,11.5655]
[1751296031128,13.37812916,2443.6,2443.5,10.0]
[1751296031353,9.28580636,2443.6,2443.5,10.0]
[1751296031758,9.28580636,2443.6,2443.5,14.09249028]
[1751296031759,2.04680636,2443.6,2443.5,14.09249028]
[1751296032085,2.07,2443.7,2443.6,15.68776866]
[1751296032285,9.307,2443.7,2443.6,15.68776866]
[1751296032448,9.307,2443.7,2443.6,11.5955]
[1751296032648,9.307,2443.7,2443.6,15.6878228]
[1751296033279,9.307,2443.7,2443.6,11.5955]
[1751296033480,3.16658508,2443.7,2443.6,11.5955]
[1751296033791,3.16658508,2443.7,2443.6,15.6878228]
[1751296033986,3.16658508,2443.7,2443.6,11.5955]
[1751296034348,3.16658508,2443.7,2443.6,15.6878228]
[1751296034947,2.07,2443.8,2443.7,14.09213546]
[1751296035148,6.18435157,2444.1,2443.7,24.72986901]
[1751296035346,6.18435157,2444.1,2444.0,10.0]
[1751296035579,13.41735157,2444.1,2444.0,4.09165302]
[1751296035785,11.78727317,2444.1,2444.0,14.09165302]
[1751296035973,11.78727317,2444.1,2444.0,10.0]
[1751296036680,11.78727317,2444.1,2444.0,14.09165302]
[1751296036873,9.74087729,2444.1,2444.0,14.09165302]
[1751296037265,98.17961666,2444.7,2444.1,14.09148561]
[1751296037464,0.02360412,2444.3,2444.2,10.0]
[1751296037776,0.02360412,2444.3,2444.2,14.09131822]
[1751296037963,94.08906321,2444.7,2444.3,10.0]
[1751296038158,94.08906321,2444.7,2444.3,14.09103801]
[1751296038495,2.07,2444.6,2444.4,4.09097255]
[1751296038691,7.229,2444.5,2444.3,10.0]
[1751296039108,0.02360412,2444.6,2444.3,4.09115084]
[1751296039408,7.227,2444.4,2444.2,1.5519]
[1751296039716,0.02360412,2444.6,2444.3,4.09115084]
[1751296040005,5.17960412,2444.5,2444.4,14.09096599]
[1751296040297,4.09279177,2444.5,2444.4,14.09098347]
[1751296040507,4.09279177,2444.5,2444.4,10.0]
[1751296041695,8.18360788,2444.5,2444.4,10.0]
[1751296041888,4.09279177,2444.5,2444.4,10.0]
[1751296043685,8.18360788,2444.5,2444.4,10.0]
[1751296043883,4.09115084,2444.3,2444.2,7.98]
[1751296044103,4.09115084,2444.3,2444.2,17.98]
[1751296044916,4.09107375,2444.4,2444.3,10.0]
[1751296045122,4.09111465,2444.4,2444.3,10.0]
[1751296047490,4.09279177,2444.5,2443.8,10.63773355]
[1751296047693,4.09148155,2444.2,2443.9,10.0]
[1751296047890,7.216,2444.1,2443.9,10.0]
[1751296048092,94.08906321,2444.7,2444.5,1.5536]
[1751296048321,86.46264739,2444.7,2444.6,14.72838232]
[1751296048626,93.67764739,2444.7,2444.6,20.63773355]
[1751296048930,93.67764739,2444.7,2444.6,10.0]
[1751296049308,93.04254739,2444.7,2444.6,10.0]
[1751296049522,85.82854739,2444.7,2444.6,14.09064877]
[1751296049828,93.04254739,2444.7,2444.6,15.68484877]
[1751296050339,93.04254739,2444.7,2444.6,15.86984]
[1751296050694,91.71954739,2444.7,2444.6,15.86984]
[1751296051034,90.50954739,2444.7,2444.6,15.86984]
[1751296051527,90.50954739,2444.7,2444.6,10.18499123]
[1751296052613,90.50954739,2444.7,2444.6,14.27564]
[1751296053218,90.50954739,2444.7,2444.6,10.18499123]
[1751296053605,94.60002883,2444.7,2444.6,10.18499123]
[1751296053813,90.50954739,2444.7,2444.1,1.6486]
[1751296054039,4.09088694,2444.5,2444.1,10.0]
[1751296054329,5.60548418,2444.3,2444.0,7.98]
[1751296054543,5.60548418,2444.3,2443.8,4.09190002]
[1751296054544,4.09149369,2444.1,2443.8,10.0]
[1751296054695,11.29865563,2444.0,2443.6,18.61773355]
[1751296054896,7.207,2443.9,2443.6,18.61773355]
[1751296055125,11.29809221,2443.8,2443.3,12.07272995]
[1751296055327,11.29809221,2443.8,2443.4,7.98]
[1751296055328,4.0922402,2443.7,2443.4,7.98]
[1751296055502,13.34435322,2443.6,2443.3,0.18408227]
[1751296055829,9.252,2443.6,2443.2,14.73070383]
[1751296056026,9.252,2443.6,2443.3,10.0]
[1751296056796,9.252,2443.6,2443.3,14.09279301]
[1751296057031,9.252,2443.6,2443.3,10.0]
[1751296057531,9.252,2443.6,2443.3,14.0927733]
[1751296057709,9.252,2443.6,2443.3,10.18490683]
[1751296058033,4.09260491,2443.5,2443.3,10.18490683]
[1751296058230,1.5522,2444.4,2443.4,1.6505]
[1751296058429,4.09189725,2443.9,2443.5,10.0]
[1751296058627,7.203,2443.8,2443.5,4.09248027]
[1751296058831,2.046,2443.7,2443.5,4.09248027]
[1751296059030,7.203,2443.6,2443.5,4.09248027]
[1751296059230,7.203,2443.6,2443.5,10.0]
[1751296059527,7.203,2443.6,2443.4,1.6505]
[1751296059824,7.203,2443.6,2443.3,10.18490683]
[1751296060023,7.203,2443.6,2443.3,14.27770608]
[1751296060330,7.203,2443.6,2443.3,10.18490683]
[1751296061326,4.09249122,2443.5,2443.3,10.18490683]
[1751296061548,7.203,2443.6,2443.0,0.02]
[1751296061549,4.09316032,2443.1,2443.0,0.02]
[1751296061710,14.93086032,2443.1,2443.0,0.02]
[1751296061909,6.89127903,2443.1,2443.0,0.02]
[1751296062113,15.47986032,2443.1,2443.0,0.02]
[1751296062321,16.68627903,2443.1,2443.0,0.02]
[1751296062532,17.08077577,2443.1,2443.0,0.02]
[1751296063438,16.6826215,2443.1,2443.0,0.02]
[1751296064441,15.47986032,2443.1,2443.0,0.02]
[1751296065530,4.09433344,2442.4,2442.3,0.02]
[1751296065734,13.71557475,2442.4,2442.3,0.02]
[1751296066898,9.62124131,2442.4,2442.3,0.02]
[1751296067099,9.61924131,2442.4,2442.3,0.02]
[1751296067299,4.09383064,2442.7,2442.3,1.23587335]
[1751296067502,9.244,2442.6,2442.3,1.23587335]
[1751296067739,7.196,2442.5,2442.3,5.33036854]
[1751296067925,4.09375127,2442.8,2442.3,4.11449519]
[1751296068129,4.09401631,2442.6,2442.3,0.02]
[1751296068323,9.243,2442.7,2442.3,0.02]
[1751296068324,9.242,2442.5,2442.3,0.02]
[1751296068508,4.09390779,2442.7,2442.3,0.02]
[1751296068907,9.242,2442.6,2442.3,0.02]
[1751296069106,9.242,2442.6,2442.3,4.11449994]
[1751296069335,5.68421861,2442.9,2442.4,4.09431226]
[1751296069512,2.047,2442.8,2442.5,4.09408807]
[1751296069832,9.241,2442.7,2442.5,1.82084215]
[1751296070037,9.241,2442.7,2442.3,14.11448443]
[1751296070241,4.09382674,2442.8,2442.3,14.11448443]
[1751296070846,9.241,2442.7,2442.5,10.0]
[1751296071060,9.241,2442.7,2442.5,14.0940981]
[1751296071201,9.241,2442.7,2442.6,14.73173174]
[1751296071202,2.047,2442.7,2442.6,14.73173174]
[1751296071401,9.24,2442.7,2442.6,16.29463174]
[1751296071664,9.24,2442.7,2442.6,28.92409491]
[1751296071803,2.047,2442.7,2442.6,28.92409491]
[1751296072152,46.03869841,2444.7,2444.5,4.09081611]
[1751296072440,5.52936634,2445.3,2444.5,4.09081611]
[1751296072441,1.229284,2446.0,2445.3,4.08947407]
[1751296072603,5.52936634,2446.9,2445.9,10.63773355]
[1751296072604,3.73652366,2446.8,2445.9,10.63773355]
[1751296072803,9.266,2446.7,2446.0,4.52726446]
[1751296073028,0.9266,2446.6,2446.1,4.0881403]
[1751296073227,0.9266,2446.6,2446.1,4.27667775]
[1751296073428,9.264,2446.5,2446.2,4.08787501]
[1751296073629,2.047,2446.4,2446.2,4.08797318]
[1751296073936,7.217,2446.3,2446.2,4.08797318]
[1751296074457,7.217,2446.3,2446.2,14.08797318]
[1751296075547,7.217,2446.3,2446.2,10.0]
[1751296075864,8.1434,2446.3,2445.5,1.6056]
[1751296076063,8.1434,2446.3,2445.7,4.08871818]
[1751296076361,8.1434,2446.3,2445.5,1.6056]
[1751296076708,1.5619,2446.2,2445.6,4.08895971]
[1751296076871,8.7659,2446.2,2445.8,4.08854235]
[1751296077045,0.87659,2446.1,2445.7,14.08875]
[1751296077565,0.87659,2446.1,2445.8,4.08861392]
[1751296078062,0.87659,2446.1,2445.7,4.08876476]
[1751296078755,0.87659,2446.1,2446.0,14.08830744]
[1751296078934,2.046,2446.3,2446.2,4.08797318]
[1751296079261,9.248,2446.3,2446.2,14.08797318]
[1751296080377,2.046,2446.3,2446.2,14.08797318]
[1751296080603,2.046,2446.8,2446.7,4.08701603]
[1751296080779,9.24,2446.8,2446.7,4.08701603]
[1751296080956,3.9933,2446.8,2446.7,14.08701603]
[1751296081160,9.236,2446.8,2446.7,14.08701603]
[1751296081357,2.2657933,2447.2,2447.1,4.08646969]
[1751296081769,9.4537933,2447.2,2447.1,4.08646969]
[1751296083181,9.4537933,2447.2,2446.5,1.7583]
[1751296083487,7.186,2447.1,2446.8,10.0]
[1751296083687,8.13137933,2447.1,2446.8,4.08688284]
[1751296084261,9.219,2447.0,2446.8,4.0868062]
[1751296084590,0.94537933,2447.1,2447.0,14.08663669]
[1751296084889,7.186,2447.1,2447.0,10.0]
[1751296085790,7.186,2447.1,2446.6,4.08729772]
[1751296085983,7.186,2447.1,2446.5,1.5543]
[1751296086157,7.186,2447.1,2446.7,4.08704514]
[1751296086565,11.2724799,2447.1,2446.6,14.08724318]
[1751296086909,1.14932732,2447.0,2446.8,4.08682694]
[1751296087066,1.14932732,2447.0,2446.9,4.08680371]
[1751296087267,1.14932732,2447.0,2446.8,4.08688484]
[1751296087467,1.14932732,2447.0,2446.5,11.85739008]
[1751296087701,1.14932732,2447.0,2446.6,4.0872974]
[1751296087994,4.08697073,2446.8,2446.2,1.5232]
[1751296088204,4.08744097,2446.6,2445.9,1.5232]
[1751296088363,11.27055093,2446.5,2446.1,10.0]
[1751296088562,11.27055093,2446.5,2446.0,4.0882902]
[1751296088563,7.183,2446.5,2446.4,4.08763897]
[1751296088763,7.183,2446.5,2446.3,14.08771134]
[1751296088965,0.7183,2446.4,2446.2,14.08789832]
[1751296089594,7.183,2446.3,2446.2,10.0]
[1751296089995,7.183,2446.3,2446.2,4.40026752]
[1751296090205,7.183,2446.3,2446.2,14.40026752]
[1751296090708,7.183,2446.3,2445.7,4.08880892]
[1751296090876,4.878106,2446.2,2445.8,10.0]
[1751296091068,0.79013,2446.2,2445.8,14.08856433]
[1751296091264,0.79013,2446.2,2446.0,4.08821975]
[1751296091492,0.79013,2446.2,2446.0,0.30794116]
[1751296091810,0.79013,2446.2,2445.8,4.0885691]
[1751296091972,1.20609368,2446.1,2445.8,4.0885691]
[1751296092306,1.20609368,2446.1,2446.0,4.08830744]
[1751296093176,7.183,2446.3,2446.1,4.08813596]
[1751296093378,7.182,2446.2,2446.0,10.29984794]
[1751296093696,2.032,2446.8,2446.4,4.08749076]
[1751296093993,2.032,2446.8,2446.7,14.08713777]
[1751296094206,9.214,2446.8,2446.7,14.08713777]
[1751296094399,9.214,2446.8,2446.7,14.3940425]
[1751296095693,2.032,2446.8,2446.7,14.3940425]
[1751296095877,9.214,2446.8,2446.7,14.3940425]
[1751296096272,7.182,2446.9,2446.8,14.08686478]
[1751296096676,7.182,2446.9,2446.8,10.0]
[1751296096876,7.9002,2446.9,2446.7,0.30690473]
[1751296097117,7.9002,2446.9,2446.8,10.0]
[1751296097409,7.9002,2446.9,2446.7,10.0]
[1751296097709,11.98703276,2446.9,2446.7,10.0]
[1751296097869,7.9002,2446.9,2446.5,10.0]
[1751296098070,1.19870328,2446.8,2446.7,14.08713777]
[1751296098403,1.19870328,2446.8,2446.5,10.31082997]
[1751296098612,1.19870328,2446.8,2446.7,10.0]
[1751296098787,1.19870328,2446.8,2446.7,14.08713777]
[1751296099111,2.2527933,2447.2,2446.9,4.08671712]
[1751296099406,7.181,2447.1,2446.8,14.08689656]
[1751296099578,7.181,2447.1,2446.5,0.31319125]
[1751296099778,11.26761979,2447.1,2446.7,10.0]
[1751296100216,11.26761979,2447.1,2446.8,0.96621294]
[1751296100520,5.84731347,2447.0,2446.9,0.96621294]
[1751296101076,5.84731347,2447.0,2446.6,1.20341282]
[1751296101077,4.08694622,2446.9,2446.5,1.50346187]
[1751296101276,4.08689643,2446.9,2446.6,2.17244942]
[1751296101519,1.76067678,2447.0,2446.8,1.20341282]
[1751296101723,5.84744291,2447.0,2446.9,2.18416106]
[1751296101910,5.84744291,2447.0,2446.9,0.9690366]
[1751296102508,5.84744291,2447.0,2446.9,2.59536195]
[1751296102689,5.84744291,2447.0,2446.9,0.9690366]
[1751296103099,5.84744291,2447.0,2446.9,2.59533128]
[1751296103422,5.84744291,2447.0,2446.9,3.40093195]
[1751296103622,1.76067678,2447.0,2446.9,3.40093195]
[1751296103924,9.212,2447.0,2446.9,0.9690366]
[1751296104525,13.29863669,2447.0,2446.9,0.9690366]
[1751296104688,14.90083669,2447.0,2446.9,2.59816704]
[1751296104890,14.90083669,2447.0,2446.9,0.9690366]
[1751296105226,14.90083669,2447.0,2446.9,2.19089959]
[1751296105720,16.82164677,2447.0,2446.9,0.9690366]
[1751296108616,16.98740827,2447.0,2446.9,0.70329159]
[1751296109216,15.38320827,2447.0,2446.9,0.70329159]
[1751296109418,15.38320827,2447.0,2446.9,1.92520059]
[1751296109916,15.38320827,2447.0,2446.9,0.70329159]
[1751296110925,11.29657158,2447.0,2446.9,0.70329159]
[1751296111118,9.3757615,2447.0,2446.9,0.70329159]
[1751296111322,9.3757615,2447.0,2446.9,1.92520059]
[1751296113318,13.46239819,2447.0,2446.9,1.92520059]
[1751296114353,13.46239819,2447.0,2446.9,0.70329159]
[1751296114354,9.3757615,2447.0,2446.9,0.70329159]
[1751296114643,9.3757615,2447.0,2446.9,1.92520059]
[1751296114940,15.23933837,2447.0,2446.9,0.70329159]
[1751296115245,11.15270168,2447.0,2446.9,0.70329159]
[1751296115411,11.14770168,2447.0,2446.9,0.70329159]
[1751296116035,10.98194018,2447.0,2446.9,0.70329159]
[1751296116202,11.14781768,2447.0,2446.9,0.70329159]
[1751296116408,11.14781768,2447.0,2446.9,6.0120043]
[1751296116755,11.14781768,2447.0,2446.9,1.92520059]
[1751296116926,11.14781768,2447.0,2446.9,0.70329159]
[1751296117122,11.14781768,2447.0,2446.9,1.92520059]
[1751296117438,9.3708775,2447.0,2446.9,14.7900953]
[1751296117943,9.37092973,2447.0,2446.9,14.7900953]
[1751296118345,2.19492973,2447.0,2446.9,14.7900953]
[1751296118641,0.2207933,2447.2,2447.1,14.08646969]
[1751296118942,7.3957933,2447.2,2447.1,15.30995227]
[1751296119148,10.228,2447.8,2447.1,11.22348258]
[1751296119346,10.228,2447.8,2447.5,4.08564752]
[1751296119535,10.228,2447.8,2447.4,10.0]
[1751296119536,7.175,2447.7,2447.4,10.0]
[1751296119735,7.175,2447.7,2447.4,4.08595442]
[1751296119926,7.175,2447.6,2447.5,14.08580183]
[1751296120130,13.44463,2447.8,2447.5,14.08580183]
[1751296120433,6.11372828,2448.2,2447.7,14.6977278]
[1751296120745,12.27964435,2448.1,2447.8,0.97806207]
[1751296120943,4.08496975,2448.0,2447.7,10.61233401]
[1751296121147,4.08515479,2447.9,2447.4,11.22348258]
[1751296121356,7.174,2447.8,2447.5,0.97770863]
[1751296121528,4.08550852,2447.7,2447.4,10.0]
[1751296121850,7.173,2447.6,2447.5,0.97780658]
[1751296122860,11.2586349,2447.6,2447.5,0.97780658]
[1751296123363,4.08630271,2447.2,2447.1,1.22348258]
[1751296123681,4.08663669,2447.0,2446.9,1.22348258]
[1751296123816,4.08663669,2447.0,2446.9,2.20126192]
[1751296124134,5.97448104,2447.0,2446.9,0.97777934]
[1751296124333,9.05984435,2447.0,2446.9,0.97777934]
[1751296124533,13.14648104,2447.0,2446.9,0.97777934]
[1751296124722,13.14648104,2447.0,2446.7,10.0]
[1751296124919,4.08680371,2446.9,2446.8,0.97780767]
[1751296125230,5.81013219,2446.9,2446.8,0.97780767]
[1751296125428,4.08713777,2446.7,2446.6,7.98]
[1751296125625,11.25913777,2446.7,2446.6,18.95784423]
[1751296126147,11.25913777,2446.7,2446.6,8.95784423]
[1751296126354,11.25913777,2446.7,2446.6,7.98]
[1751296126538,12.96608181,2446.7,2446.6,7.98]
[1751296127640,4.08730483,2446.6,2446.5,0.30869547]
[1751296127953,4.08792427,2446.3,2446.1,1.22348258]
[1751296128159,7.171,2446.2,2446.0,2.87778258]
[1751296128453,7.171,2446.2,2446.1,10.97804392]
[1751296128621,7.171,2446.2,2446.1,15.06618422]
[1751296128820,7.171,2446.2,2446.1,10.97804392]
[1751296129119,7.171,2446.2,2446.1,15.06608996]
[1751296129319,7.171,2446.2,2446.1,10.97804392]
[1751296129627,2.029,2446.5,2446.3,10.0]
[1751296129834,7.17,2446.4,2446.3,10.0]
[1751296130652,7.17,2446.4,2446.3,14.08780607]
[1751296131043,7.17,2446.4,2446.3,24.70014008]
[1751296131786,7.17,2446.4,2446.1,10.61233401]
[1751296131942,11.25768455,2446.4,2446.3,0.30519761]
[1751296132130,4.08780607,2446.3,2446.2,10.0]
[1751296132335,4.08789222,2446.3,2446.0,1.6543]
[1751296132749,4.08789222,2446.3,2445.9,10.0]
[1751296132928,4.08800511,2446.2,2445.9,10.0]
[1751296133144,7.17,2446.1,2445.9,10.0]
[1751296133891,7.17,2446.1,2445.9,14.08846191]
[1751296134084,7.17,2446.1,2445.9,10.31019532]
[1751296134584,7.17,2446.1,2445.9,14.39866841]
[1751296134775,7.17,2446.1,2446.0,14.08830744]
[1751296135077,1.6327,2446.6,2446.0,14.08830744]
[1751296135278,9.198,2446.5,2446.2,10.0]
[1751296135490,0.57199081,2446.6,2446.4,4.08763897]
[1751296135668,9.198,2446.5,2446.4,4.08763897]
[1751296135981,9.198,2446.5,2446.2,24.70024091]
[1751296136170,9.198,2446.5,2446.3,4.08772284]
[1751296136556,4.08630931,2447.2,2446.3,4.08772284]
[1751296136557,2.029,2447.4,2446.4,1.5132]
[1751296136881,7.169,2447.3,2447.0,14.69885714]
[1751296137046,0.9198,2447.2,2447.0,10.61233401]
[1751296137242,4.08653462,2447.1,2446.8,10.0]
[1751296137475,9.197,2447.0,2446.8,10.0]
[1751296137677,9.197,2447.0,2446.8,14.08689093]
[1751296137884,9.197,2447.0,2446.8,10.0]
[1751296138047,1.32834733,2446.9,2446.8,10.0]
[1751296138748,10.52534733,2446.9,2446.8,10.0]
[1751296139073,9.197,2446.9,2446.8,10.0]
[1751296140150,4.08580435,2447.5,2447.0,4.08660652]
[1751296140151,6.11488827,2447.5,2447.0,4.08660652]
[1751296140350,7.167,2447.4,2447.0,14.08660652]
[1751296140549,7.167,2447.4,2447.1,14.08645543]
[1751296140751,0.9196,2447.3,2446.8,5.67440329]
[1751296140993,0.9196,2447.3,2447.1,4.08639203]
[1751296141167,0.9196,2447.3,2447.2,4.08630271]
[1751296141501,9.195,2447.3,2447.2,4.08630271]
[1751296141702,5.06738134,2447.7,2447.2,4.08630271]
[1751296141867,9.195,2447.6,2447.2,4.08630271]
[1751296142054,13.28066249,2447.6,2447.2,4.08630271]
[1751296142850,9.195,2447.6,2447.0,10.0]
[1751296143051,4.08604162,2447.4,2447.0,10.0]
[1751296143380,7.165,2447.3,2447.0,14.0866218]
[1751296143548,7.165,2447.3,2447.0,10.0]
[1751296143752,12.8662626,2447.3,2447.0,10.0]
[1751296144050,1.28662626,2447.2,2447.1,14.08646969]
[1751296144361,2.029,2447.3,2447.2,14.08630271]
[1751296144549,9.194,2447.3,2447.2,14.08630271]
[1751296145285,15.90317609,2448.1,2447.6,10.0]
[1751296145497,14.86230439,2448.0,2447.6,14.0855451]
[1751296145857,10.77731761,2448.0,2447.6,14.0855451]
[1751296146059,5.67530379,2448.0,2447.6,10.0]
[1751296146393,9.186,2447.9,2447.6,14.08560351]
[1751296147201,2.022,2447.9,2447.6,14.08560351]
[1751296147369,7.164,2447.8,2447.6,14.08560351]
[1751296147691,12.7355093,2447.8,2447.3,10.0]
[1751296147854,8.65013107,2447.8,2447.2,0.31394079]
[1751296148060,4.0859678,2447.5,2447.2,10.0]
[1751296148261,2.022,2447.9,2447.5,10.0]
[1751296148479,7.162,2447.8,2447.5,14.08579348]
[1751296148798,8.48890552,2447.8,2447.5,14.08579348]
[1751296149205,8.48890552,2447.8,2447.6,4.08560448]
[1751296149696,1.32690552,2447.8,2447.6,4.08560448]
[1751296149990,5.7134571,2447.9,2447.6,10.0]
[1751296150173,7.161,2447.7,2447.6,10.0]
[1751296150876,11.24646799,2447.7,2447.6,10.0]
[1751296151063,11.24653161,2447.7,2447.4,10.0]
[1751296151268,7.161,2447.7,2447.4,10.0]
[1751296151593,0.9183,2447.6,2447.4,10.0]
[1751296151900,1.6252,2448.5,2447.6,4.0856349]
[1751296152205,6.10665104,2448.2,2447.8,10.0]
[1751296152499,9.182,2448.1,2447.8,10.0]
[1751296152796,5.41170337,2448.0,2447.5,15.70496881]
[1751296153589,1.3266651,2448.0,2447.7,10.0]
[1751296153795,6.9701338,2448.0,2447.5,11.6192]
[1751296154001,5.7004671,2447.9,2447.5,11.6192]
[1751296154198,7.159,2447.8,2447.5,11.6192]
[1751296155284,1.5518,2448.5,2447.8,4.08530108]
[1751296155485,4.08487885,2448.1,2447.7,10.0]
[1751296155666,7.159,2448.0,2447.7,10.0]
[1751296155865,2.022,2448.2,2447.8,10.61233401]
[1751296156202,2.022,2448.2,2448.1,4.08466424]
[1751296156383,9.18,2448.2,2448.1,4.08466424]
[1751296156585,2.022,2448.2,2448.1,4.08466424]
[1751296156796,9.18,2448.2,2448.1,4.08466424]
[1751296156979,4.08389597,2448.7,2448.2,4.08459864]
[1751296157299,10.6101896,2448.5,2448.2,14.69693265]
[1751296157500,10.6101896,2448.5,2448.2,10.61233401]
[1751296158506,14.69434982,2448.5,2448.2,10.61233401]
[1751296158709,10.6101896,2448.5,2447.9,1.6594]
[1751296158919,10.6101896,2448.5,2447.8,10.61233401]
[1751296158920,4.08490024,2448.1,2447.7,10.0]
[1751296159077,7.157,2448.0,2447.7,10.0]
[1751296159421,5.05779247,2448.1,2447.7,10.19539863]
[1751296159717,9.178,2448.0,2447.7,10.19539863]
[1751296162019,2.021,2448.2,2448.1,14.08480045]
[1751296162215,9.177,2448.2,2448.1,14.08480045]
[1751296163190,9.177,2448.2,2447.8,12.11523401]
[1751296163422,9.177,2448.2,2448.0,10.0]
[1751296163619,9.177,2448.2,2448.1,4.08480045]
[1751296163820,9.177,2448.2,2448.0,14.08489815]
[1751296163992,4.08414603,2448.5,2448.1,4.08480045]
[1751296164348,4.08437883,2448.4,2448.0,10.0]
[1751296164494,2.021,2448.5,2448.3,10.0]
[1751296164692,7.155,2448.4,2448.3,10.0]
[1751296165127,7.155,2448.4,2448.0,10.0]
[1751296165128,11.23929995,2448.4,2448.0,10.0]
[1751296165541,11.23929995,2448.4,2448.0,14.08495247]
[1751296165908,13.99563075,2448.4,2448.0,10.0]
[1751296166092,4.08451729,2448.3,2448.0,10.0]
[1751296166732,11.43793758,2448.4,2448.0,10.0]
[1751296166914,11.43793758,2448.4,2447.6,4.08555409]
[1751296166915,4.08504999,2448.0,2447.6,4.08555409]
[1751296167117,9.174,2447.9,2447.6,12.06555409]
[1751296167333,9.174,2447.9,2447.7,10.0]
[1751296167633,13.25915519,2447.9,2447.7,10.0]
[1751296167832,10.90842052,2447.9,2447.7,0.18974028]
[1751296167998,10.90842052,2447.9,2447.7,10.0]
[1751296168199,9.174,2447.9,2447.7,10.0]
[1751296169418,13.25921591,2447.9,2447.7,10.0]
[1751296169824,13.25921591,2447.9,2447.7,10.19524756]
[1751296170024,9.174,2447.9,2447.7,10.19524756]
[1751296170803,9.174,2447.9,2447.7,14.28071465]
[1751296171233,4.08448166,2448.3,2447.7,10.19524756]
[1751296171405,10.00974192,2448.2,2447.9,10.61233401]
[1751296172237,14.09446162,2448.2,2447.9,10.61233401]
[1751296172732,9.172,2448.1,2447.9,14.69739412]
[1751296172898,1.5267,2448.4,2447.9,14.69731817]
[1751296173100,13.256476,2448.3,2447.9,14.69731817]
[1751296173297,13.256476,2448.3,2447.9,10.61233401]
[1751296173537,9.172,2448.3,2447.9,14.69744782]
[1751296173833,9.172,2448.3,2448.0,4.0849447]
[1751296173998,2.021,2448.3,2448.0,10.0]
[1751296174201,7.151,2448.2,2448.1,15.67121309]
[1751296174426,7.151,2448.2,2448.1,11.5865]
[1751296175340,7.151,2448.2,2448.1,10.0]
[1751296176832,2.021,2448.3,2448.1,10.0]
[1751296177039,7.15,2448.2,2448.1,10.0]
[1751296177840,11.2346336,2448.2,2448.1,17.98]
[1751296178406,12.96863961,2448.2,2448.1,17.98]
[1751296178811,2.014,2448.2,2448.1,10.0]
[1751296179012,9.162,2448.2,2448.1,10.0]
[1751296180258,13.2466336,2448.2,2448.1,10.0]
[1751296180615,9.162,2448.2,2448.1,10.0]
[1751296183546,13.2466336,2448.2,2448.1,10.0]
[1751296183718,14.97974736,2448.2,2448.1,10.0]
[1751296184450,13.2466336,2448.2,2448.1,10.0]
[1751296186446,7.144,2448.2,2448.1,10.0]
[1751296188358,7.154,2448.2,2448.1,10.0]
[1751296189122,11.2386336,2448.2,2448.1,10.0]
[1751296189526,4.08513419,2447.9,2447.8,7.98]
[1751296189865,4.08513419,2447.9,2447.8,8.9590584]
[1751296189866,11.22813419,2447.9,2447.8,8.9590584]
[1751296190556,7.143,2447.9,2447.8,8.9590584]
[1751296190932,7.143,2447.9,2447.8,7.98]
[1751296191127,9.156,2447.9,2447.8,12.06523552]
[1751296191332,0.01,2448.2,2447.9,4.08509705]
[1751296191565,9.155,2448.1,2448.0,10.61233401]
[1751296191866,13.2398318,2448.1,2447.9,10.61233401]
[1751296192653,10.218,2448.6,2448.0,11.63]
[1751296192868,9.154,2448.5,2448.3,10.61233401]
[1751296193269,14.30198692,2448.6,2448.3,10.61233401]
[1751296193468,9.154,2448.5,2448.3,14.69675926]
[1751296193977,9.154,2448.5,2448.3,10.61233401]
[1751296194349,9.154,2448.5,2448.3,14.69678995]
[1751296194572,9.154,2448.4,2448.3,14.69678995]
[1751296195172,9.154,2448.4,2448.3,10.61233401]
[1751296195949,9.154,2448.4,2448.3,20.61233401]
[1751296196149,9.154,2448.4,2448.3,24.69680078]
[1751296196460,9.153,2448.4,2448.3,24.69680078]
[1751296196777,9.152,2448.4,2448.3,20.61233401]
[1751296196946,11.23212797,2448.4,2447.9,1.22348258]
[1751296197148,1.5598,2448.2,2447.8,7.98]
[1751296197347,7.138,2448.1,2447.9,5.06416527]
[1751296197671,7.138,2448.0,2447.9,14.08503817]
[1751296198094,8.17533277,2448.6,2448.0,10.0]
[1751296198391,9.151,2448.5,2448.4,10.61233401]
[1751296198848,9.15429605,2448.6,2448.4,10.61233401]
[1751296199049,9.151,2448.5,2448.4,10.61233401]
[1751296200380,8.17533277,2448.6,2448.5,4.08413314]
[1751296200692,0.02,2448.8,2448.7,4.08379956]
[1751296200878,9.17,2448.8,2448.6,15.69269513]
[1751296201095,11.6886,2448.8,2448.4,10.61233401]
[1751296201444,15.77236838,2448.8,2448.4,10.61233401]
[1751296201790,4.08403317,2448.6,2448.4,10.61233401]
[1751296202075,7.135,2448.5,2448.4,10.61233401]
[1751296202992,11.21913314,2448.5,2448.4,10.61233401]
[1751296203970,11.21913314,2448.5,2448.1,10.0]
[1751296204146,4.08456037,2448.3,2448.0,10.02]
[1751296204346,9.147,2448.2,2448.0,10.02]
[1751296205607,13.23170047,2448.2,2448.0,10.02]
[1751296205808,4.08480045,2448.1,2448.0,0.02]
[1751296206176,2.003,2448.3,2448.1,4.08472867]
[1751296206488,7.132,2448.2,2448.1,14.69706268]
[1751296207204,7.132,2448.2,2448.1,10.61233401]
[1751296207877,1.5359,2448.8,2448.1,10.61233401]
[1751296208074,4.08400957,2448.6,2448.1,14.69703007]
[1751296208598,4.08415407,2448.5,2448.1,10.61233401]
[1751296208909,11.21531365,2448.4,2448.1,20.61233401]
[1751296209116,9.134,2448.3,2448.1,20.61233401]
[1751296211693,7.129,2448.4,2448.3,20.61233401]
[1751296212575,5.59187843,2448.6,2448.3,20.61233401]